bitfinex/quotes_BTCUSD_20240826
["timestamp","ask_amount","ask_price","bid_price","bid_amount"]
[1724664424457,0.69427123,63717.0,63716.0,0.000825]
[1724664424675,0.33357418,63717.0,63716.0,0.000825]
[1724664425126,0.96134818,63717.0,63716.0,0.000825]
[1724664425574,1.00815823,63717.0,63716.0,0.000825]
[1724664426197,1.46094523,63717.0,63716.0,0.000825]
[1724664426414,1.87920957,63717.0,63716.0,0.000825]
[1724664426628,1.76218444,63717.0,63716.0,0.000825]
[1724664427058,1.87920957,63717.0,63716.0,0.000825]
[1724664427740,1.76218444,63717.0,63716.0,0.000825]
[1724664428219,1.76218444,63717.0,63703.0,0.00854056]
[1724664428220,1.098832,63704.0,63703.0,0.00854056]
[1724664428421,1.39131001,63704.0,63703.0,0.00854056]
[1724664428631,1.74057315,63704.0,63703.0,0.00854056]
[1724664428860,1.7382105,63704.0,63703.0,0.00854056]
[1724664429071,2.0521625,63704.0,63703.0,0.00854056]
[1724664429304,2.05271665,63704.0,63703.0,0.00854056]
[1724664430140,2.06271665,63704.0,63703.0,0.00854056]
[1724664430967,2.07671665,63704.0,63703.0,0.00854056]
[1724664431197,2.22284833,63704.0,63703.0,0.00854056]
[1724664431411,2.22284833,63704.0,63691.0,0.0004]
[1724664431412,1.82225772,63694.0,63691.0,0.0004]
[1724664431613,2.31684952,63694.0,63691.0,0.0004]
[1724664431830,2.32523118,63694.0,63691.0,0.0004]
[1724664432045,2.43798948,63694.0,63691.0,0.0004]
[1724664432253,2.43773428,63694.0,63691.0,0.0004]
[1724664432465,2.34797598,63694.0,63691.0,0.0004]
[1724664432674,2.34774849,63694.0,63691.0,0.0004]
[1724664432883,2.34797598,63694.0,63691.0,0.0004]
[1724664433307,1.86904722,63694.0,63691.0,0.0004]
[1724664433508,1.84565759,63694.0,63691.0,0.0004]
[1724664433720,1.84565759,63694.0,63693.0,0.0049722]
[1724664433930,1.85965759,63694.0,63693.0,0.0049722]
[1724664434562,1.42790747,63694.0,63693.0,0.0049722]
[1724664434774,1.49791767,63694.0,63693.0,0.0049722]
[1724664434987,1.47458191,63694.0,63693.0,0.0049722]
[1724664435171,1.47439302,63694.0,63693.0,0.0049722]
[1724664435438,1.42771858,63694.0,63693.0,0.0049722]
[1724664436283,1.11371758,63694.0,63693.0,0.0049722]
[1724664436715,0.73961658,63694.0,63693.0,0.0049722]
[1724664436950,0.19255967,63694.0,63693.0,0.0049722]
[1724664437162,0.34955967,63694.0,63693.0,0.0049722]
[1724664437377,0.19255967,63694.0,63693.0,0.1619752]
[1724664437587,0.34955967,63694.0,63693.0,0.0049722]
[1724664437807,0.33555967,63694.0,63693.0,0.0049722]
[1724664438230,0.33555967,63694.0,63693.0,0.2278752]
[1724664438231,0.03638166,63694.0,63693.0,0.2278752]
[1724664438450,0.02238166,63694.0,63693.0,0.2278752]
[1724664438671,0.02838166,63694.0,63693.0,0.0049722]
[1724664438877,0.006,63694.0,63693.0,0.0049722]
[1724664439102,0.02310506,63694.0,63693.0,0.0049722]
[1724664439312,0.015,63694.0,63693.0,0.5362812]
[1724664439493,0.01410506,63694.0,63693.0,0.5362812]
[1724664439700,0.006,63694.0,63693.0,0.0652722]
[1724664439914,0.014,63694.0,63693.0,0.0652722]
[1724664440033,0.014,63694.0,63693.0,0.2222752]
[1724664440237,0.01610726,63694.0,63693.0,0.0652722]
[1724664440496,0.02110726,63694.0,63693.0,0.2222752]
[1724664441078,0.02110726,63694.0,63693.0,0.1619752]
[1724664442362,0.02110726,63694.0,63693.0,0.4759812]
[1724664442588,0.013,63694.0,63693.0,0.7909872]
[1724664442798,0.013,63694.0,63693.0,1.1855932]
[1724664443359,0.013,63694.0,63693.0,1.2477932]
[1724664443978,0.008,63694.0,63693.0,0.9337872]
[1724664444191,0.46876099,63707.0,63693.0,0.1487722]
[1724664444420,0.005,63694.0,63693.0,0.1487722]
[1724664444639,0.013,63694.0,63693.0,0.1487722]
[1724664445007,0.15617801,63706.0,63693.0,0.1487722]
[1724664445677,0.0753,63704.0,63693.0,0.0049722]
[1724664445882,0.15957908,63703.0,63695.0,0.001]
[1724664446107,0.15617801,63703.0,63695.0,0.001]
[1724664446794,0.00340107,63702.0,63695.0,0.001]
[1724664447122,0.15617801,63701.0,63695.0,0.001]
[1724664447328,0.007,63706.0,63697.0,0.001]
[1724664447503,0.00689591,63701.0,63698.0,0.0793]
[1724664447913,0.001,63703.0,63698.0,0.0793]
[1724664448146,0.00689591,63700.0,63698.0,0.0793]
[1724664448376,0.15617801,63703.0,63698.0,0.0793]
[1724664448577,0.00689591,63702.0,63698.0,0.0793]
[1724664448709,0.15617801,63703.0,63698.0,0.0793]
[1724664448905,0.00689591,63702.0,63698.0,0.0793]
[1724664449317,0.001,63700.0,63697.0,0.001]
[1724664449694,0.00689591,63699.0,63697.0,0.001]
[1724664450151,0.00689591,63699.0,63698.0,0.001]
[1724664450425,0.00689591,63699.0,63697.0,0.001]
[1724664451087,0.003,63702.0,63697.0,0.001]
[1724664451301,0.00689591,63698.0,63697.0,0.003]
[1724664451511,0.15617801,63703.0,63697.0,0.001]
[1724664451733,0.0068981,63698.0,63697.0,0.001]
[1724664451940,0.07890107,63702.0,63694.0,0.001]
[1724664452156,0.08239591,63702.0,63697.0,0.001]
[1724664452376,0.0068981,63698.0,63695.0,0.001]
[1724664452602,0.0755,63702.0,63697.0,0.001]
[1724664452834,0.15957908,63701.0,63697.0,0.001]
[1724664453099,0.16647499,63701.0,63697.0,0.0029]
[1724664453345,0.16647499,63701.0,63697.0,0.0009]
[1724664453790,0.16647499,63701.0,63693.0,0.0049722]
[1724664454013,0.001,63698.0,63695.0,0.002]
[1724664454453,0.001,63698.0,63697.0,0.001]
[1724664454951,0.15717801,63698.0,63697.0,0.001]
[1724664455153,0.24157908,63698.0,63697.0,0.001]
[1724664455656,0.30357908,63698.0,63697.0,0.001]
[1724664456143,0.30257908,63698.0,63693.0,0.0049722]
[1724664456374,0.15617801,63697.0,63693.0,0.0049722]
[1724664456557,0.15617801,63697.0,63695.0,0.002]
[1724664456558,0.00340107,63696.0,63695.0,0.002]
[1724664456793,0.15957908,63696.0,63693.0,0.0049722]
[1724664457001,0.15617801,63695.0,63693.0,0.0049722]
[1724664457639,0.00340107,63694.0,63693.0,0.0049722]
[1724664457844,0.15957908,63694.0,63693.0,0.0049722]
[1724664458050,0.15957908,63694.0,63693.0,0.0069722]
[1724664458258,0.15617801,63694.0,63693.0,0.0069722]
[1724664458470,0.15617801,63694.0,63693.0,0.0049722]
[1724664458690,0.15617801,63694.0,63693.0,0.0069722]
[1724664458903,0.15717801,63694.0,63693.0,0.0069722]
[1724664459636,0.15717801,63694.0,63693.0,0.0089722]
[1724664459839,0.16057908,63694.0,63693.0,0.0069722]
[1724664460268,0.16157908,63694.0,63693.0,0.0089722]
[1724664462421,0.15817801,63694.0,63693.0,0.0089722]
[1724664467100,0.15817801,63694.0,63693.0,0.1573722]
[1724664467101,0.002,63694.0,63693.0,0.1573722]
[1724664468204,0.002,63694.0,63693.0,0.42979843]
[1724664468407,0.002,63694.0,63693.0,0.45279843]
[1724664468824,0.002,63694.0,63693.0,0.1803722]
[1724664471732,0.002,63694.0,63693.0,0.18754342]
[1724664475343,0.002,63694.0,63693.0,0.61928699]
[1724664475554,0.002,63694.0,63693.0,0.72458699]
[1724664475760,0.002,63694.0,63693.0,0.92458699]
[1724664476013,0.002,63694.0,63693.0,0.95244766]
[1724664476223,0.001,63694.0,63693.0,0.95044766]
[1724664476642,0.00090751,63698.0,63697.0,0.1393]
[1724664476851,0.00071856,63698.0,63697.0,2.08292401]
[1724664477960,0.10696075,63728.0,63697.0,2.08292401]
[1724664477961,0.4696707,63723.0,63716.0,0.1169]
[1724664478166,0.4696707,63723.0,63716.0,0.56850424]
[1724664478361,0.4696707,63723.0,63716.0,1.238522]
[1724664478627,0.00090971,63723.0,63716.0,1.238522]
[1724664479250,0.00090971,63723.0,63716.0,1.215522]
[1724664479996,0.00090971,63723.0,63716.0,1.221522]
[1724664480198,0.00290751,63717.0,63716.0,1.221522]
[1724664480612,0.00090751,63717.0,63716.0,0.477838]
[1724664480810,0.00090751,63717.0,63716.0,0.488838]
[1724664481280,0.00090751,63717.0,63716.0,0.018]
[1724664481484,0.00090751,63717.0,63716.0,0.174946]
[1724664481684,0.00090751,63717.0,63716.0,0.488838]
[1724664482253,0.00090751,63717.0,63716.0,0.78573]
[1724664482460,0.00090751,63717.0,63716.0,0.471838]
[1724664482828,0.00090751,63717.0,63716.0,0.472838]
[1724664484362,0.00090751,63717.0,63716.0,0.476838]
[1724664484999,0.00090751,63717.0,63716.0,0.79073]
[1724664486713,0.00090751,63717.0,63716.0,0.476838]
[1724664486918,0.00090751,63717.0,63716.0,0.162946]
[1724664487131,0.00090751,63717.0,63716.0,0.476838]
[1724664487334,0.00090751,63717.0,63716.0,0.161946]
[1724664487540,0.00090751,63717.0,63716.0,0.475838]
[1724664487957,0.00090751,63717.0,63716.0,0.161946]
[1724664488170,0.00090751,63717.0,63716.0,0.005]
[1724664488377,0.15785051,63717.0,63716.0,0.005]
[1724664489000,0.54783751,63717.0,63716.0,0.005]
[1724664489207,0.23395051,63717.0,63716.0,0.005]
[1724664490264,0.07700751,63717.0,63716.0,0.005]
[1724664491553,0.23395051,63717.0,63716.0,0.005]
[1724664492812,0.54783751,63717.0,63716.0,0.005]
[1724664494086,0.07700751,63717.0,63716.0,0.161946]
[1724664494706,0.00090751,63717.0,63716.0,0.161946]
[1724664495537,0.00090751,63717.0,63716.0,0.475838]
[1724664496114,0.00090751,63717.0,63716.0,0.161946]
[1724664496684,0.00090751,63717.0,63716.0,0.79073]
[1724664498796,0.00090751,63717.0,63716.0,1.104622]
[1724664499624,0.00090751,63717.0,63716.0,0.79073]
[1724664500465,0.00090751,63717.0,63716.0,1.104622]
[1724664500676,0.00090751,63717.0,63716.0,0.79073]
[1724664500886,0.00090751,63717.0,63716.0,1.104622]
[1724664501548,0.00090751,63717.0,63716.0,0.79073]
[1724664501964,0.00090751,63717.0,63716.0,1.104622]
[1724664502591,0.00090751,63717.0,63716.0,1.182422]
[1724664503632,0.00090751,63717.0,63716.0,1.580914]
[1724664503874,0.00090751,63717.0,63716.0,2.00951824]
[1724664505099,0.00090751,63717.0,63716.0,2.00851824]
[1724664505306,0.00190751,63717.0,63716.0,2.01751824]
[1724664505717,0.00190751,63717.0,63716.0,2.01351824]
[1724664505925,0.00190751,63717.0,63716.0,2.02651824]
[1724664511589,0.00190751,63717.0,63716.0,1.121622]
[1724664513779,0.00190751,63717.0,63716.0,0.80773]
[1724664514050,0.06840751,63717.0,63716.0,0.80773]
[1724664514536,0.06840751,63717.0,63716.0,0.179946]
[1724664514784,0.06840751,63717.0,63716.0,0.493838]
[1724664515283,0.06840751,63717.0,63716.0,0.80773]
[1724664515804,0.06840751,63717.0,63716.0,0.80850251]
[1724664516305,0.06840751,63717.0,63716.0,0.80773]
[1724664518177,0.00190751,63717.0,63716.0,0.80773]
[1724664522873,0.00190751,63717.0,63716.0,1.121622]
[1724664523474,0.00190751,63717.0,63716.0,1.435514]
[1724664523677,0.00190751,63717.0,63716.0,1.73094023]
[1724664524992,0.00190751,63717.0,63716.0,1.96451824]
[1724664525678,0.00190751,63717.0,63716.0,1.97139703]
[1724664526649,0.00190751,63717.0,63716.0,1.4661653]
[1724664526897,0.00190751,63717.0,63716.0,1.46539279]
[1724664527146,0.00190751,63717.0,63716.0,1.4661653]
[1724664527370,0.00190751,63717.0,63716.0,1.1522733]
[1724664527624,0.00190751,63717.0,63716.0,1.1292733]
[1724664527869,0.00190751,63717.0,63716.0,1.12850079]
[1724664528352,0.00190751,63717.0,63716.0,1.1292733]
[1724664528818,0.00190751,63717.0,63716.0,1.12850079]
[1724664529063,0.00190751,63717.0,63716.0,1.1292733]
[1724664530035,0.00190751,63717.0,63716.0,1.12850079]
[1724664531923,0.00190751,63717.0,63716.0,1.1292733]
[1724664533420,0.00190751,63717.0,63716.0,1.12850079]
[1724664534887,0.00190751,63717.0,63716.0,1.26640079]
[1724664536343,0.00190751,63717.0,63716.0,1.19050079]
[1724664536591,0.00190751,63717.0,63716.0,1.12850079]
[1724664538561,0.00190751,63717.0,63716.0,1.1292733]
[1724664538782,0.00190751,63717.0,63716.0,1.12850079]
[1724664539023,0.00190751,63717.0,63716.0,1.1292733]
[1724664539306,0.00190751,63717.0,63716.0,1.12239451]
[1724664539803,0.00190751,63717.0,63716.0,1.121622]
[1724664540029,0.00190751,63717.0,63716.0,1.12239451]
[1724664540247,0.00190751,63717.0,63716.0,1.121622]
[1724664540702,0.00190751,63717.0,63716.0,1.12239451]
[1724664541209,0.06200751,63717.0,63716.0,1.121622]
[1724664541484,0.14090751,63717.0,63716.0,0.178946]
[1724664542012,0.14090751,63717.0,63716.0,0.022]
[1724664542744,0.34480085,63717.0,63716.0,0.022]
[1724664542968,0.29785051,63717.0,63716.0,0.022]
[1724664543258,1.11621403,63717.0,63716.0,0.022]
[1724664543503,1.54647689,63717.0,63716.0,0.013]
[1724664543761,1.54647689,63717.0,63716.0,0.017]
[1724664543762,1.74298803,63717.0,63716.0,0.017]
[1724664543979,1.74298803,63717.0,63716.0,0.004]
[1724664543980,1.88383906,63717.0,63716.0,0.004]
[1724664544208,1.56995206,63717.0,63716.0,0.011]
[1724664544466,1.42910103,63717.0,63716.0,0.011]
[1724664545393,1.74298803,63717.0,63716.0,0.011]
[1724664545642,0.78478,63712.0,63711.0,9.172e-05]
[1724664545923,1.74186745,63712.0,63711.0,9.172e-05]
[1724664547071,1.74186745,63712.0,63711.0,0.00309172]
[1724664547072,1.73347274,63712.0,63711.0,0.00309172]
[1724664547295,1.85068624,63712.0,63711.0,0.00309172]
[1724664548308,1.82720787,63712.0,63711.0,0.00309172]
[1724664549469,1.73347274,63712.0,63711.0,0.00309172]
[1724664550452,1.46723316,63712.0,63711.0,0.00309172]
[1724664553269,1.39697001,63712.0,63711.0,0.00309172]
[1724664553699,2.0040113,63712.0,63711.0,0.00309172]
[1724664553949,2.00411643,63712.0,63711.0,0.00309172]
[1724664554156,2.09785156,63712.0,63711.0,0.00309172]
[1724664554356,2.09785156,63712.0,63711.0,9.172e-05]
[1724664555142,2.09885156,63712.0,63711.0,9.172e-05]
[1724664555366,2.00443626,63712.0,63711.0,9.172e-05]
[1724664555771,1.67639624,63712.0,63711.0,0.00109172]
[1724664556446,1.74658429,63712.0,63711.0,0.00109172]
[1724664556657,1.67639624,63712.0,63711.0,0.00109172]
[1724664557298,1.74658351,63712.0,63711.0,0.00109172]
[1724664557514,1.67639624,63712.0,63711.0,0.00109172]
[1724664558334,1.7465827,63712.0,63711.0,0.00109172]
[1724664561555,1.67639624,63712.0,63711.0,0.00109172]
[1724664563542,1.867853,63707.0,63706.0,8.804e-05]
[1724664563750,1.867853,63707.0,63699.0,0.00023243]
[1724664563751,0.612156,63700.0,63699.0,0.00023243]
[1724664563959,2.12913958,63700.0,63699.0,0.00023243]
[1724664564611,2.03463774,63700.0,63699.0,0.00023243]
[1724664564820,2.12810406,63700.0,63699.0,0.00023243]
[1724664565275,2.12910317,63700.0,63699.0,0.00023243]
[1724664565488,2.03563774,63700.0,63699.0,0.00023243]
[1724664565700,2.35060874,63700.0,63699.0,0.00123243]
[1724664565919,2.56185507,63700.0,63699.0,0.00123243]
[1724664566133,2.38760874,63700.0,63699.0,0.00223243]
[1724664566340,2.36460874,63700.0,63699.0,0.00223243]
[1724664566567,2.48134636,63700.0,63699.0,0.00223243]
[1724664566750,2.47134636,63700.0,63699.0,0.00223243]
[1724664566987,2.47115741,63700.0,63699.0,0.00223243]
[1724664567397,2.44777736,63700.0,63699.0,0.00223243]
[1724664568302,2.47075415,63700.0,63699.0,0.00223243]
[1724664569415,2.05202906,63700.0,63699.0,0.00223243]
[1724664570278,2.12199995,63700.0,63699.0,0.00223243]
[1724664570509,1.8326318,63700.0,63699.0,0.00223243]
[1724664570948,1.8086318,63700.0,63699.0,0.00223243]
[1724664571162,1.78402895,63700.0,63699.0,0.00223243]
[1724664571374,1.71405806,63700.0,63699.0,0.00223243]
[1724664572470,1.40008706,63700.0,63699.0,0.00223243]
[1724664574655,1.099003,63694.0,63682.0,0.0606]
[1724664574871,1.39528101,63694.0,63679.0,0.1409]
[1724664575950,1.40628101,63694.0,63693.0,0.0059722]
[1724664576161,1.41328101,63694.0,63693.0,0.0069722]
[1724664576431,1.41328101,63694.0,63669.0,0.00826]
[1724664576432,0.0824,63678.0,63669.0,0.00826]
[1724664576650,0.0824,63678.0,63645.0,0.4659]
[1724664576651,0.472342,63648.0,63647.0,0.00575686]
[1724664576866,1.37222423,63648.0,63647.0,0.00575686]
[1724664577077,0.16416793,63648.0,63647.0,0.00575686]
[1724664577291,0.47939593,63648.0,63647.0,0.00575686]
[1724664577507,0.79262393,63648.0,63647.0,0.00575686]
[1724664577737,0.00705393,63648.0,63647.0,0.00575686]
[1724664577953,0.27242623,63657.0,63647.0,0.00575686]
[1724664578191,0.17105538,63648.0,63647.0,0.00675686]
[1724664578411,0.314178,63659.0,63647.0,0.00575686]
[1724664578412,0.157098,63655.0,63647.0,0.00575686]
[1724664578630,0.01,63648.0,63647.0,0.00675686]
[1724664578842,0.167114,63648.0,63647.0,0.00675686]
[1724664579053,0.167114,63648.0,63647.0,0.00575686]
[1724664579054,0.157114,63648.0,63647.0,0.00575686]
[1724664579266,0.471342,63648.0,63647.0,0.00675686]
[1724664579492,0.01,63657.0,63647.0,0.00675686]
[1724664579493,0.314198,63654.0,63647.0,0.00675686]
[1724664579705,0.314198,63654.0,63647.0,0.00575686]
[1724664579706,0.157113,63649.0,63647.0,0.00575686]
[1724664579915,0.15617801,63653.0,63647.0,0.00575686]
[1724664580128,0.164114,63648.0,63647.0,0.00575686]
[1724664580384,0.63452001,63648.0,63647.0,0.00575686]
[1724664580597,0.94174801,63648.0,63647.0,0.00575686]
[1724664581265,0.94674801,63648.0,63647.0,0.00575686]
[1724664581480,0.62752001,63648.0,63647.0,0.00575686]
[1724664581701,0.15617801,63648.0,63647.0,0.00575686]
[1724664581923,0.31929201,63648.0,63647.0,0.00675686]
[1724664582189,0.16217801,63648.0,63647.0,0.00675686]
[1724664582412,0.006,63648.0,63647.0,0.00675686]
[1724664582635,0.008,63648.0,63647.0,0.00575686]
[1724664583065,0.014,63648.0,63647.0,0.00675686]
[1724664583493,0.022,63648.0,63647.0,0.00675686]
[1724664583961,0.014,63648.0,63647.0,0.00675686]
[1724664584179,0.025,63648.0,63647.0,0.00675686]
[1724664584389,0.025,63648.0,63647.0,0.00575686]
[1724664584390,0.011,63648.0,63647.0,0.00575686]
[1724664584605,0.016,63648.0,63647.0,0.00575686]
[1724664585020,0.011,63648.0,63647.0,0.00575686]
[1724664585419,0.009,63648.0,63647.0,0.00575686]
[1724664585630,0.011,63648.0,63647.0,0.00575686]
[1724664585834,0.011,63648.0,63647.0,0.00658186]
[1724664586044,0.016,63648.0,63647.0,0.00658186]
[1724664586250,0.005,63648.0,63647.0,0.00658186]
[1724664586691,0.013,63648.0,63647.0,0.00658186]
[1724664587526,0.013,63648.0,63647.0,0.47793086]
[1724664587773,0.013,63648.0,63647.0,0.86836386]
[1724664588012,0.013,63648.0,63647.0,1.18259686]
[1724664588507,0.0647,63671.0,63647.0,1.18259686]
[1724664588508,0.157026,63684.0,63672.0,0.0762]
[1724664588742,0.0647,63686.0,63672.0,0.0762]
[1724664588743,0.46876099,63673.0,63672.0,0.81978923]
[1724664588962,0.00689857,63673.0,63672.0,0.68485824]
[1724664589181,0.00689857,63673.0,63672.0,1.31407624]
[1724664589408,0.00090751,63700.0,63691.0,0.0794]
[1724664589653,0.00090751,63700.0,63699.0,1.05736623]
[1724664589873,0.00090751,63700.0,63699.0,0.550364]
[1724664590101,0.00090751,63700.0,63699.0,0.86434]
[1724664590356,0.00090751,63712.0,63711.0,0.232058]
[1724664590578,0.00090751,63712.0,63711.0,1.19341823]
[1724664590815,0.00090751,63712.0,63711.0,1.57573973]
[1724664591048,0.00090751,63712.0,63711.0,1.73191774]
[1724664591274,0.00090751,63712.0,63711.0,1.73291774]
[1724664591496,0.00090751,63712.0,63711.0,1.41408701]
[1724664591766,0.00090751,63712.0,63711.0,0.1362]
[1724664591972,0.00090751,63712.0,63711.0,0.293158]
[1724664592188,0.00090751,63712.0,63711.0,0.1362]
[1724664592617,0.00190751,63712.0,63711.0,0.165958]
[1724664592828,0.00290751,63712.0,63711.0,0.023]
[1724664593043,0.00290751,63712.0,63711.0,0.014]
[1724664593273,0.00290751,63712.0,63709.0,0.156962]
[1724664593274,0.00090751,63712.0,63709.0,0.156962]
[1724664593504,0.00490751,63712.0,63705.0,0.313945]
[1724664593722,0.00490751,63712.0,63706.0,0.15697]
[1724664593942,0.156958,63711.0,63704.0,0.0763]
[1724664594164,0.156962,63710.0,63698.0,0.313976]
[1724664594407,0.156962,63710.0,63702.0,0.156979]
[1724664594626,0.156964,63709.0,63699.0,0.313976]
[1724664594855,0.156964,63709.0,63700.0,0.156984]
[1724664595075,0.156966,63708.0,63700.0,0.156984]
[1724664595712,0.00090751,63712.0,63699.0,0.156987]
[1724664595713,0.156968,63707.0,63699.0,0.156987]
[1724664595919,0.156971,63706.0,63699.0,0.156987]
[1724664596125,0.156971,63706.0,63700.0,0.002]
[1724664596538,0.156971,63706.0,63700.0,0.001]
[1724664596762,0.00090751,63712.0,63700.0,0.001]
[1724664596763,0.15617801,63705.0,63700.0,0.001]
[1724664596974,0.156983,63701.0,63700.0,0.001]
[1724664597615,0.156977,63704.0,63700.0,0.001]
[1724664597825,0.156979,63703.0,63699.0,0.000825]
[1724664598065,0.156985,63700.0,63699.0,0.000825]
[1724664598277,0.15617801,63700.0,63699.0,0.000825]
[1724664598494,0.31316301,63700.0,63699.0,0.000825]
[1724664599119,0.15617801,63700.0,63699.0,0.000825]
[1724664599400,0.15617801,63700.0,63699.0,0.003825]
[1724664599828,0.31316301,63700.0,63699.0,0.004825]
[1724664600513,0.62713401,63700.0,63699.0,0.004825]
[1724664601403,0.62713401,63700.0,63699.0,0.003825]
[1724664601620,0.63913401,63700.0,63699.0,0.001825]
[1724664601841,0.16817801,63700.0,63699.0,0.001825]
[1724664602055,0.32316301,63700.0,63699.0,0.001825]
[1724664602302,0.32316301,63700.0,63699.0,0.000825]
[1724664602303,0.31316301,63700.0,63699.0,0.000825]
[1724664602549,0.33516301,63700.0,63699.0,0.002825]
[1724664605603,0.17817801,63700.0,63699.0,0.002825]
[1724664606470,0.022,63700.0,63699.0,0.863865]
[1724664606677,0.022,63700.0,63699.0,1.177841]
[1724664606922,0.022,63700.0,63699.0,0.863865]
[1724664607131,0.022,63700.0,63699.0,0.002825]
[1724664607338,0.022,63700.0,63699.0,0.159813]
[1724664607976,0.022,63700.0,63699.0,0.473789]
[1724664608208,0.01,63700.0,63699.0,0.472789]
[1724664608420,0.256969,63707.0,63701.0,0.156983]
[1724664608631,0.31314901,63706.0,63701.0,0.156983]
[1724664608863,0.1,63707.0,63699.0,0.0079645]
[1724664609078,0.1,63707.0,63706.0,0.156971]
[1724664609299,0.1,63707.0,63704.0,0.313951]
[1724664609518,0.1,63707.0,63706.0,0.156971]
[1724664609727,0.107,63707.0,63704.0,0.470925]
[1724664609936,0.004,63706.0,63702.0,0.31396]
[1724664610152,0.107,63707.0,63701.0,0.001]
[1724664610153,0.15617801,63705.0,63701.0,0.001]
[1724664610806,0.31315101,63705.0,63701.0,0.001]
[1724664611010,0.31315101,63705.0,63699.0,0.000825]
[1724664611011,0.156979,63703.0,63699.0,0.000825]
[1724664613173,0.1,63707.0,63705.0,0.156972]
[1724664613434,0.1,63707.0,63703.0,0.156976]
[1724664613649,0.1,63707.0,63699.0,0.000825]
[1724664613858,0.1,63707.0,63702.0,0.31396]
[1724664614076,0.1,63707.0,63703.0,0.156977]
[1724664614490,0.25617801,63707.0,63699.0,0.000825]
[1724664614712,0.005,63705.0,63699.0,0.000825]
[1724664614917,0.005,63705.0,63701.0,0.156982]
[1724664615131,0.31314901,63706.0,63700.0,0.156985]
[1724664615337,0.15617801,63706.0,63700.0,0.156983]
[1724664615541,0.15617801,63706.0,63703.0,0.001]
[1724664615964,0.15617801,63706.0,63699.0,0.000825]
[1724664616172,0.156977,63704.0,63699.0,0.157812]
[1724664616378,0.156973,63705.0,63700.0,0.001]
[1724664616806,0.156973,63705.0,63700.0,0.157984]
[1724664617664,0.16217801,63706.0,63700.0,0.001]
[1724664617880,0.156979,63703.0,63699.0,0.000825]
[1724664618099,0.156985,63700.0,63699.0,0.001825]
[1724664618314,0.16845787,63700.0,63699.0,0.001825]
[1724664618587,0.15617801,63700.0,63699.0,0.001825]
[1724664618805,0.15617801,63700.0,63699.0,0.000825]
[1724664619451,0.156977,63704.0,63699.0,0.003825]
[1724664619666,0.16845822,63703.0,63699.0,0.003825]
[1724664619881,0.01228021,63702.0,63699.0,0.004825]
[1724664620092,0.01227895,63701.0,63699.0,0.004825]
[1724664620311,0.31315601,63703.0,63699.0,0.004825]
[1724664620533,0.01227887,63702.0,63699.0,0.004825]
[1724664620770,0.01227887,63701.0,63699.0,0.004825]
[1724664620986,0.31315601,63703.0,63699.0,0.003825]
[1724664621227,0.01228006,63702.0,63699.0,0.003825]
[1724664621439,0.01228006,63701.0,63699.0,0.157813]
[1724664621661,0.01228006,63700.0,63699.0,0.157813]
[1724664621871,0.15617801,63703.0,63699.0,0.157813]
[1724664622083,0.001,63701.0,63699.0,0.000825]
[1724664622295,0.01228075,63700.0,63699.0,0.000825]
[1724664622748,0.32544376,63700.0,63699.0,0.002825]
[1724664622964,0.32544376,63700.0,63699.0,0.003825]
[1724664622965,1.10178683,63700.0,63699.0,0.003825]
[1724664623177,1.41235676,63700.0,63699.0,0.003825]
[1724664623792,1.09838576,63700.0,63699.0,0.003825]
[1724664624160,1.09838576,63700.0,63699.0,0.002825]
[1724664624360,1.09838576,63700.0,63699.0,0.000825]
[1724664624562,1.41635676,63700.0,63699.0,0.000825]
[1724664624763,1.41735676,63700.0,63699.0,0.003825]
[1724664624967,1.41335676,63700.0,63699.0,0.000825]
[1724664625185,1.42435676,63700.0,63699.0,0.001825]
[1724664625389,1.43335676,63700.0,63699.0,0.002825]
[1724664626058,1.74732776,63700.0,63699.0,0.002825]
[1724664626675,1.77189423,63700.0,63699.0,0.002825]
[1724664627119,1.76089423,63700.0,63699.0,0.001825]
[1724664627440,1.79789423,63700.0,63699.0,0.001825]
[1724664627642,1.78889423,63700.0,63699.0,0.000825]
[1724664627842,1.93102591,63700.0,63699.0,0.000825]
[1724664628099,1.94502591,63700.0,63699.0,0.001825]
[1724664628310,1.94502591,63700.0,63699.0,0.000825]
[1724664628548,1.77661348,63700.0,63699.0,0.000825]
[1724664628684,1.78888564,63700.0,63699.0,0.001825]
[1724664628969,1.78888564,63700.0,63699.0,0.000825]
[1724664629554,1.80288564,63700.0,63699.0,0.000825]
[1724664629784,1.94759509,63700.0,63699.0,0.000825]
[1724664630141,0.0812,63688.0,63670.0,0.314116]
[1724664630369,0.16845017,63687.0,63670.0,0.00314085]
[1724664630579,0.16845017,63687.0,63673.0,0.0782]
[1724664630580,0.01227216,63686.0,63673.0,0.0782]
[1724664630780,0.15617801,63687.0,63683.0,0.157025]
[1724664630781,0.01227216,63685.0,63683.0,0.157025]
[1724664630997,0.156991,63698.0,63690.0,0.314019]
[1724664631200,0.156991,63698.0,63674.0,0.0664]
[1724664631201,0.014,63688.0,63687.0,0.157017]
[1724664631432,0.014,63688.0,63687.0,0.471052]
[1724664631629,0.157003,63693.0,63687.0,0.471052]
[1724664631852,0.15617801,63692.0,63687.0,0.157017]
[1724664632060,0.15617801,63692.0,63682.0,0.082]
[1724664632061,0.01227176,63692.0,63691.0,0.157008]
[1724664632265,0.378773,63700.0,63694.0,0.156998]
[1724664632266,0.04660183,63700.0,63694.0,0.156998]
[1724664632471,0.014,63698.0,63693.0,0.314006]
[1724664632703,0.15617801,63697.0,63695.0,0.156995]
[1724664633065,0.15617801,63697.0,63694.0,0.156999]
[1724664633285,0.01227172,63696.0,63694.0,0.156999]
[1724664633489,0.15617801,63697.0,63694.0,0.156999]
[1724664633698,0.014,63698.0,63695.0,0.156996]
[1724664633889,0.014,63698.0,63696.0,0.156995]
[1724664634107,0.014,63698.0,63697.0,0.470979]
[1724664634307,0.04660183,63701.0,63699.0,0.156988]
[1724664634552,0.04660183,63704.0,63699.0,0.156988]
[1724664634781,0.04750934,63705.0,63703.0,0.156977]
[1724664634984,0.00090751,63705.0,63704.0,0.12559653]
[1724664635401,0.00090751,63705.0,63704.0,0.43954853]
[1724664635637,0.00090751,63705.0,63704.0,0.12559653]
[1724664635888,0.00090751,63705.0,63704.0,0.75350053]